Cogmind - Beta 14 @@@ ROGUE MODE // 2024.10.27 @ 01:25:21 Player: Ae Result: Destroyed by S-10 Pest with Light Assault Rifle Performance ------------- Evolutions (0) 0 Regions Visited (2) 400 Robots Destroyed (30) 150 Value Destroyed (532) 532 Prototype IDs (0) 0 Alien Tech Used (0) 0 Bonus (0) 0 TOTAL SCORE: 1082 Bonus ------- None Cogmind --------- Core Integrity 0/250 Matter 300/300 Energy 265/265 System Corruption 0% Temperature Cool (0) Movement Treading (160) Location -10/Mines Parts ------- > --- POWER (1) -------- Improved Ion Engine > --- PROPULSION (2) --- Light Treads Light Treads > --- UTILITY (2) ------ Medium Storage Unit Seismic Detector > --- WEAPON (2) ------- Heavy Assault Rifle Heavy Hammer > --- INVENTORY (10) --- Compact Wheel Improved Terrain Scanner EM Pulse Gun EM Pulse Gun Light Assault Rifle Grenade Launcher Rocket Launcher Heavy Hammer Makeshift Spear Peak State ------------ > --- POWER ------------ Improved Ion Engine > --- PROPULSION ------- Aluminum Leg Aluminum Leg > --- UTILITY ---------- Medium Storage Unit Seismic Detector > --- WEAPON ----------- Heavy Assault Rifle Heavy Hammer > --- INVENTORY -------- Improved Ion Engine Light Treads Light Treads Compact Wheel Seismic Detector EM Pulse Gun EM Pulse Gun Heavy Assault Rifle Grenade Launcher Heavy Hammer [Rating: 11] Favorites ----------- Power Improved Ion Engine Engine Improved Ion Engine Propulsion Aluminum Leg Treads Light Treads Leg Aluminum Leg Utility Seismic Detector Device Seismic Detector Storage Medium Storage Unit Weapon Assault Rifle Energy Gun EM Pulse Gun Ballistic Gun Assault Rifle Launcher Grenade Launcher Impact Weapon Heavy Hammer Build | -11 -10 -10 ------- Run | Yrd Mat Min Slots Evolved . | . . . Power . | . . . Propulsion . | . . . Utility . | . . . Weapon . | . . . Parts Attached 26 | 9 9 8 Power 3 | 1 1 1 Engine 3 | 1 1 1 Core . | . . . Reactor . | . . . Propulsion 4 | 2 . 2 Treads 2 | . . 2 Leg 2 | 2 . . Wheel . | . . . Hover . | . . . Flight . | . . . Utility 6 | 3 2 1 Device 2 | 1 . 1 Storage 4 | 2 2 . Processor . | . . . Hackware . | . . . Protection . | . . . Artifact . | . . . Weapon 13 | 3 6 4 Energy Gun 1 | 1 . . Energy Cannon . | . . . Ballistic Gun 7 | 2 3 2 Ballistic Cannon . | . . . Launcher 4 | . 2 2 Special Weapon . | . . . Impact Weapon 1 | . 1 . Slashing Weapon . | . . . Piercing Weapon . | . . . Special Melee Weapon . | . . . Unidentified Prototypes . | . . . Parts Lost 6 | . . 6 Power 1 | . . 1 Propulsion 2 | . . 2 Utility 1 | . . 1 Weapon 2 | . . 2 Highest Loss Streak 5 | . . 5 To Critical Strikes . | . . . Average Slot Usage (%) 99 | . 100 98 Engine 13 | . 14 13 Treads 12 | . . 26 Leg 15 | . 28 1 Device 13 | . 14 13 Storage 14 | . 14 14 Ballistic Gun 11 | . 16 7 Launcher 7 | . 8 5 Impact Weapon 8 | . 3 14 Peak Build Rating 11 | 7 11 11 Average Rating 8 | 5 8 10 On Entrance 6 | . 7 11 Naked Turns . | . . . Heaviest Build 24 | 13 24 24 Greatest Support 40 | 20 20 40 Greatest Overweight (x) 3 | 3 1 1 Average Overweight (x) . | . . . Largest Inventory Capacity 10 | 8 10 10 Average Capacity 9 | 7 9 10 Most Carried 10 | 8 10 10 Average Carried 7 | 4 8 7 Final Capacity 10 | 8 10 10 Final Carried 10 | 8 10 9 Class Distribution -------------------- 100% | Mutant Dominant Class ---------------- Mutant | -10/Materials Mutant | -10/Mines Resources | -11 -10 -10 ----------- Run | Yrd Mat Min Matter Collected 738 | 350 139 249 Remotely . | . . . Salvage Created 673 | 154 198 321 Parts 41 | 10 15 16 Haulers Intercepted 1 | . 1 . Recyclers Shooed . | . . . Parts Field Recycled . | . . . Retrieved Matter . | . . . Parts Self-Destructed . | . . . Prevented . | . . . Kills | -11 -10 -10 ------- Run | Yrd Mat Min Combat Hostiles Destroyed 18 | . 10 8 Melee 1 | . . 1 AOE 12 | . 8 4 Classes Destroyed 8 | 2 5 1 Worker 1 | . 1 . Tunneler 5 | 3 1 1 Hauler 1 | . 1 . Recycler 4 | 1 . 3 Watcher 1 | . 1 . Swarmer 9 | . 6 3 Grunt 8 | . 4 4 Demolisher 1 | . . 1 Best Kill Streak 5 | 3 5 5 Combat Bots Only 4 | . 4 3 Max Kills in Single Turn 3 | 1 2 3 Gunslinging . | . . . Exploded 2 | . 2 2 Melee 1 | . . 1 Uniques/NPCs Destroyed . | . . . Combat | -11 -10 -10 -------- Run | Yrd Mat Min Hostile Shots Fired 88 | . 42 46 Missed 29 | . 16 13 Damage Taken 1082 | . 270 812 Core 250 | . 59 191 Absorbed by Shields . | . . . Core Remaining (%) 100 | 100 . . Volleys Fired 37 | 14 17 6 Largest 2 | 2 2 1 Hottest 40 | 40 40 30 Shots Fired 52 | 28 18 6 Gun 31 | 28 3 . Cannon . | . . . Launcher 21 | . 15 6 Special . | . . . Kinetic 31 | 28 3 . Thermal . | . . . Explosive 21 | . 15 6 Electromagnetic . | . . . Robot Hit Streak 6 | 5 5 6 Robot Miss Streak 2 | 2 1 . Penetration Max . | . . . Secondary Targets . | . . . Shots Hit Robots 44 | 18 11 15 Core Hits 37 | 4 21 12 Critical Kills . | . . . Critical Parts Destroyed 4 | . 2 2 Critical Strikes 4 | . 2 2 Smash 4 | . 2 2 Melee Attacks 24 | . 6 18 Impact 24 | . 6 18 Slashing . | . . . Piercing . | . . . Sneak Attacks 3 | . 1 2 Combat Hostiles . | . . . Follow-up Attacks . | . . . Damage Inflicted 2032 | 232 868 932 Guns 247 | 232 15 . Cannons . | . . . Explosions 1009 | . 669 340 Melee 776 | . 184 592 Ramming . | . . . Kinetic 247 | 232 15 . Thermal . | . . . Explosive 1009 | . 669 340 Electromagnetic . | . . . Impact 776 | . 184 592 Slashing . | . . . Piercing . | . . . Highest Corruption . | . . . Average Corruption . | . . . Corruption Purged . | . . . Corruption Blocked . | . . . Overload Shots . | . . . Overflow Damage 288 | . 97 191 Projectiles . | . . . Explosions 45 | . 15 30 Melee 243 | . 82 161 Knockbacks 3 | . 1 2 Impact 3 | . 1 2 Kinetic . | . . . Secondary . | . . . Self-Inflicted Damage 55 | . 44 11 Shots 3 | . 2 1 Rammed . | . . . Targets Rammed . | . . . Kicked . | . . . Crushed . | . . . Highest Temperature 10 | . 10 5 Average Temperature 3 | . 4 2 Received Heat Transfer 135 | . 45 90 Siege Activations . | . . . Robots Corrupted 7 | . 3 4 Combat Hostiles 5 | . 2 3 Parts Fried 4 | . 2 2 Impact Corruptions 13 | . 6 7 Robots Melted . | . . . Combat Hostiles . | . . . Parts Melted . | . . . Heat Transferred . | . . . Parts Sabotaged . | . . . Parts Stolen . | . . . Parts Stripped . | . . . Power Chain Reactions . | . . . Alert | -11 -10 -10 ------- Run | Yrd Mat Min Peak Influence 334 | 20 334 199 Initial 82 | . 13 82 Average 139 | 8 187 125 Maximum Alert Level 1 | . 1 . Low Security (%) 73 | 100 42 100 Level 1 26 | . 57 . Level 2 . | . . . Level 3 . | . . . Level 4 . | . . . Level 5 . | . . . High Security . | . . . Max Security . | . . . Squads Dispatched 2 | . 2 . Investigation 1 | . 1 . Extermination . | . . . Reinforcement 1 | . 1 . Assault . | . . . Garrison . | . . . Intercept . | . . . Searches Triggered . | . . . Construction Impeded . | . . . Haulers Reinforced . | . . . Active Scanning Responses . | . . . Cargo Convoy Interrupts . | . . . Stealth | -11 -10 -10 --------- Run | Yrd Mat Min Distress Signals 5 | . 4 1 Communications Jammed . | . . . Distress Signals . | . . . Times Spotted 51 | . 18 33 Peak Tracking Total 18 | . 5 18 Tactical Retreats 3 | . 2 1 Traps | -11 -10 -10 ------- Run | Yrd Mat Min Traps Triggered 1 | . 1 . Indirectly . | . . . Trap Hack Attempts . | . . . Triggered . | . . . Disarmed . | . . . Reprogrammed . | . . . Reused . | . . . Traps Extracted . | . . . Installed . | . . . Triggered . | . . . Machines | -11 -10 -10 ---------- Run | Yrd Mat Min Machines Disabled . | . . . Max in Single Turn . | . . . Machines Repaired . | . . . Machines Dismantled . | . . . Machines Sabotaged . | . . . Overloaded Fab Kills . | . . . Hacking | -11 -10 -10 --------- Run | Yrd Mat Min Machines Accessed 3 | . 3 . Terminals 3 | . 3 . Fabricators . | . . . Repair Stations . | . . . Recycling Units . | . . . Scanalyzers . | . . . Garrison Access . | . . . Total Hacks 8 | . 8 . Successful 2 | . 2 . Failed 6 | . 6 . Catastrophic . | . . . Database Lockouts . | . . . Manual 8 | . 8 . Terminals 8 | . 8 . Fabricators . | . . . Repair Stations . | . . . Recycling Units . | . . . Scanalyzers . | . . . Garrison Access . | . . . Terminal Hacks . | . . . Fabricator Hacks . | . . . Repair Station Hacks . | . . . Recycling Unit Hacks . | . . . Scanalyzer . | . . . Garrison Access Hacks . | . . . Unauthorized Hacks 2 | . 2 . Terminals 2 | . 2 . Botnet 1 | . 1 . Skim 1 | . 1 . Fabricators . | . . . Repair Stations . | . . . Recycling Units . | . . . Scanalyzers . | . . . Garrison Access . | . . . Data Cores Recovered . | . . . Used . | . . . Hacking Detections 3 | . 3 . Full Trace Events . | . . . Feedback Events . | . . . Feedback Blocked . | . . . Robot Schematics Acquired . | . . . Robots Built . | . . . Authchips . | . . . Time . | . . . Total Robot Build Rating . | . . . Part Schematics Acquired . | . . . Parts Built . | . . . Authchips . | . . . Time . | . . . Total Part Build Rating . | . . . Parts Repaired . | . . . Time . | . . . Parts Recycled . | . . . Recycled Matter . | . . . Retrieved Matter . | . . . Retrieved Components . | . . . Parts Scanalyzed . | . . . Part Schematics Acquired . | . . . Parts Damaged . | . . . Bothacking | -11 -10 -10 ------------ Run | Yrd Mat Min Used RIF Installer . | . . . Robots Hacked . | . . . Non-combat . | . . . Combat . | . . . Robot Hacks Applied . | . . . Relay Couplers Released . | . . . Fabnet Peak Effective % . | . . . Robots Rewired . | . . . Allies Hacked . | . . . Hacks Repelled . | . . . Allies | -11 -10 -10 -------- Run | Yrd Mat Min Total Allies . | . . . Largest Group . | . . . Highest-Rated Group . | . . . Highest-Rated Ally . | . . . Total Orders . | . . . Ally Attacks . | . . . Total Damage . | . . . Kills . | . . . Allies Corrupted . | . . . Allies Melted . | . . . Intel | -11 -10 -10 ------- Run | Yrd Mat Min Robot Analysis Total . | . . . Derelict Logs Recovered 2 | . . 2 Drone Launches . | . . . Drone Recoveries . | . . . Exploration | -11 -10 -10 ------------- Run | Yrd Mat Min Turns Passed 1304 | 165 599 540 Spaces Moved 745 | 83 377 285 Core 11 | 11 . . Treads 268 | . . 268 Legs 466 | 72 377 17 Wheels . | . . . Hover . | . . . Flight . | . . . Fastest Speed 50 | 50 120 120 Average Speed 144 | 123 137 160 Slowest Speed 200 | 200 190 190 Overloaded Moves . | . . . Propulsion Burnouts . | . . . Robots Hopped . | . . . Cave-ins Triggered . | . . . Exploration Rate (%) 42 | 7 56 65 Regions Visited 2 Branch Regions 1 Pre-discovered Areas 2 | . . 2 Known Exits Taken . | . . . Unknown Exits Taken 2 | 1 1 . Scrap Searched 2 | . . 2 Spaces Dug . | . . . Terrain Destroyed 108 | . 74 34 Melee . | . . . Projectile . | . . . AOE 108 | . 74 34 Terrain Rammed . | . . . Walls Destroyed . | . . . Machines Disabled . | . . . Actions | -11 -10 -10 --------- Run | Yrd Mat Min Total 881 | 114 438 329 Wait 16 | . 9 7 Move 743 | 82 376 285 Hop . | . . . Pick Up 21 | 7 9 5 Fast Attach 9 | 8 1 . Attach 7 | 1 . 6 Detach 2 | 2 . . Swap 10 | . 8 2 Drop 12 | . 12 . Fire 37 | 14 17 6 Melee 24 | . 6 18 Ram . | . . . Kick . | . . . Crush . | . . . Escape Stasis . | . . . Rewire . | . . . Trap . | . . . Miscellaneous . | . . . Route ------- -11/Scrapyard -10/Materials (discovered 2 exits: [*Mat] / [*Min]) -10/Mines (discovered 2 exits: [*Mat x2]) History --------- Turn | Location | Event 2 | -11/Scrapyard | Met Revision 17 25 | -11/Scrapyard | Discovered new exit (range 16) 166 | -11/Scrapyard | Entered Materials 275 | -10/Materials | Discovered new exit (range 16) 308 | -10/Materials | Build established: Mutant 423 | -10/Materials | Discovered new exit (range 8) 765 | -10/Materials | Entered Mines 766 | -10/Mines | Assembled infested the area 771 | -10/Mines | Assisted by a Guerilla fighting off Assembled 796 | -10/Mines | Core integrity fell below 50% 829 | -10/Mines | Core integrity fell below 20% 836 | -10/Mines | Lost 5 parts (1p2n1u1w) 837 | -10/Mines | Discovered new exit (range 10) 929 | -10/Mines | Learned location of Zion (-6) 935 | -10/Mines | Learned location of Storage (-8) 1181 | -10/Mines | Received a Rocket Launcher from a helpful Derelict 1191 | -10/Mines | Discovered new exit (range 10) 1251 | -10/Mines | A weapon hastily lodged in a ceiling crevice suddenly fell to the ground 1305 | -10/Mines | Destroyed by S-10 Pest with Light Assault Rifle Last Messages --------------- laser wimps, I say!" 01181_ XQ-SYB(g): "Would you like a rocket launcher? I know I would if I were you, so I'm going to lend you mine." 01181_ XQ-SYB(g) slips back into the shadows. 01184_ Acquired Rocket Launcher. 01191_ EXIT=FOUND 01214_ R-06 Scavenger destroyed. 01214_ Destroyed Flight Unit. 01214_ S-10 Pest destroyed. 01232_ Searching scrap... 01232_ Found Med. Matter Pod. 01232_ Found Mining Laser. 01232_ Found Lgt. Assault Rifle. 01232_ Found Lgt. Cannon. 01232_ Found 37 Matter. 01233_ Acquired 30 matter. 01240_ S-10 Pest destroyed. 01251_ A Mak. Spear has been hastily shoved under some rubble with a note attached: "Stab them where it hurts!" 01257_ Acquired Mak. Spear. Map ----- +----------------------------------------------------+ | ?# [% #?????## #### ###########?# #??????? | | # %=####### #?## ##?????????# [#??????? | | !]%|%[== ##?## ##????????## ##??????? | | [##### ##### ##????????#####???????? | | ##???## ## ####??#####??????????? | | #?????## ### ##?# #??????????? | | ??????## ### #?## ##? #??????????? | | ### #??????# #?# #??#### ## #####??????? | | #??# ??????# #?# #?????## ## ###????? | | ???## #?????# #?# #??????## < # #????? | | ????## ##?????# #?# #???????## *== #?????? | | ?????####??????# #?# #????????##### ! # #?????? | | ???????????????# #?# #????????????#= ##?????? | | ???????????????? #?# #????????????# # #?????? | | ???????????????? #?# #????????????# # ##????? | | ???????????????? ??# #????????????# ####??? | | ???????????????? ??# #????????????### # # ##?? | | ???????????????? ??# #????????????## #?? | | ???????????????????# ######??????## #?? | | ???????????????????# #??????# ###?? | | ???????????????????###### #?????## # #??? | | ????????????????????????# ##????# # #??? | | ???????????????????????## ##???# # ###??? | | ???????????????????????# ##??# # ##??? | | ?????????????# s s #### ### # # #??? | | ?????????????# s @ ## # ##??? | | ?????????????????# # #### # ### #???? | | ?????????????????##??# ????# # ## # # ##???? | | ?????????????????????#?????## ## # ### ###????? | | ????????????????????????????## # #??????? | | ?????????????????????????????## ## #??????? | | ?????????????????????????????### ### #??????? | | ??????????????????????????????## ?? #??????? | | ??????????????????????????????# % ?? #??????? | | ??????????????????????????????## % ??##???????? | | ??????????????????????????????? ???????????? | | ?????????????????????????????? " #???????????? | | ?????????????????????????????# #????????????? | | ?????????????????????????????# #?????????????? | | ?????????????????????????????## ##??????????????? | | ??????????????????????????????###????????????????? | | ?????????????????????????????????????????????????? | | | | | | | | | | | | | | | | | +----------------------------------------------------+ Best States ------------- Heat Dissipation 25 Energy Generation 12 Energy Capacity 265 Matter Stores 300 Matter Capacity 300 Sight Range 16 Terrain Scan Density 10 Evasion (%) 55 Recoil Reduction 2 Item Schematics ----------------- None Robot Schematics ------------------ None Fabricated ------------ Nothing Alien Tech Used ----------------- None Achievements -------------- None Challenges ------------ None Game ------ Seed TeslaImpulseCleaver Manual? 0 Play Time 00:14:28 Cumulative 87.3 hours Start 2024.10.27 @ 01:14:54 End 2024.10.27 @ 01:25:21 Sessions 1 Manual Loads 0 Difficulty Rogue Special Mode None Game No. 145 Rogue 117 Adventurer 28 Explorer 0 Win Type - Total 0 Types 0/0/0/0/0/0/0/0/0 Lore% 31 Gallery% 31 Achievement% 32 Wizard Run 0 Options --------- Layout 0 ASCII 0 Keyboard 1 Movement Numpad Keybinds 0 Fullscreen 2 Font 36/Smallcaps Map View 76x50 Zoom Use 0% Tactical HUD 1 Map Filters NONE Filters NONE Steam 1 RUN: 40f32866-c646-49d7-9f2e-83380c1554f1